bitfinex-derivatives/quotes_BNBF0:USTF0_20250211
["timestamp","ask_amount","ask_price","bid_price","bid_amount"]
[1739317363073,2.38133316,645.41,645.13,0.31001503]
[1739317363272,1.00544455,645.41,645.13,0.31001503]
[1739317363876,1.00544455,645.4,645.13,0.31001503]
[1739317364474,1.00544455,645.39,645.13,0.31001503]
[1739317365074,1.00544455,645.38,645.13,0.31001503]
[1739317365876,1.00544455,645.37,645.13,0.31001503]
[1739317366377,0.92495043,645.83,645.13,0.31001503]
[1739317366569,4.58417176,645.82,645.13,0.31001503]
[1739317366773,3.57800661,645.81,645.13,0.31001503]
[1739317366971,3.57800661,645.8,645.13,0.31001503]
[1739317367272,4.58417176,645.79,645.13,0.31001503]
[1739317367579,3.57800661,645.78,645.13,0.31001503]
[1739317367784,3.57800661,645.77,645.13,0.31001503]
[1739317367972,3.57800661,645.76,645.13,0.31001503]
[1739317368177,4.58417176,645.75,645.13,0.31001503]
[1739317368376,3.57800661,645.74,645.13,0.31001503]
[1739317368676,4.58417176,645.73,645.13,0.31001503]
[1739317368877,3.57800661,645.72,645.13,0.31001503]
[1739317369071,4.58417176,645.71,645.13,0.31001503]
[1739317369271,3.57800661,645.7,645.13,0.31001503]
[1739317369476,3.57800661,645.69,645.13,0.31001503]
[1739317369677,3.57800661,645.68,645.13,0.31001503]
[1739317369976,4.58417176,645.67,645.13,0.31001503]
[1739317370176,3.57800661,645.66,645.13,0.31001503]
[1739317370404,3.57800661,645.65,645.13,0.31001503]
[1739317370575,3.57800661,645.64,645.13,0.31001503]
[1739317370777,3.57800661,645.63,645.13,0.31001503]
[1739317371071,4.58417176,645.62,645.13,0.31001503]
[1739317371277,3.57800661,645.61,645.13,0.31001503]
[1739317371478,3.57800661,645.6,645.13,0.31001503]
[1739317371677,4.58417176,645.59,645.13,0.31001503]
[1739317371878,3.57800661,645.58,645.13,0.31001503]
[1739317372073,4.58417176,645.57,645.13,0.31001503]
[1739317372269,3.577789,645.56,645.13,0.31001503]
[1739317372476,3.577789,645.55,645.13,0.31001503]
[1739317372677,1.37603098,645.54,645.13,0.31001503]
[1739317372875,1.37603098,645.53,645.13,0.31001503]
[1739317373074,1.37603098,645.52,645.13,0.31001503]
[1739317373274,1.37603098,645.51,645.13,0.31001503]
[1739317373578,1.37603098,645.5,645.13,0.31001503]
[1739317373774,1.37603098,645.49,645.13,0.31001503]
[1739317373973,1.37603098,645.48,645.13,0.31001503]
[1739317374185,2.38219613,645.47,645.13,0.31001503]
[1739317374380,1.37588461,645.46,645.13,0.31001503]
[1739317374679,1.00616515,645.47,645.13,0.31001503]
[1739317374874,1.00616515,645.45,645.13,0.31001503]
[1739317375476,1.00616515,645.44,645.13,0.31001503]
[1739317376178,1.00616515,645.43,645.13,0.31001503]
[1739317376983,0.92478346,645.8,645.13,0.31001503]
[1739317377177,3.57680903,645.79,645.13,0.31001503]
[1739317377378,3.57680903,645.78,645.13,0.31001503]
[1739317377578,3.57680903,645.77,645.13,0.31001503]
[1739317377784,3.57680903,645.76,645.13,0.31001503]
[1739317378083,4.58252404,645.75,645.13,0.31001503]
[1739317378280,3.57680903,645.74,645.13,0.31001503]
[1739317378484,3.57680903,645.73,645.13,0.31001503]
[1739317378683,3.57680903,645.72,645.13,0.31001503]
[1739317378884,3.57680903,645.71,645.13,0.31001503]
[1739317379087,4.58252404,645.7,645.13,0.31001503]
[1739317379385,3.57680903,645.69,645.13,0.31001503]
[1739317379587,3.57680903,645.68,645.13,0.31001503]
[1739317379786,3.57680903,645.67,645.13,0.31001503]
[1739317380019,4.58252404,645.66,645.13,0.31001503]
[1739317380188,3.57680903,645.65,645.13,0.31001503]
[1739317380383,3.57680903,645.64,645.13,0.31001503]
[1739317380582,3.57610506,645.63,645.13,0.31001503]
[1739317380784,4.58182007,645.62,645.13,0.31001503]
[1739317380989,3.57610506,645.61,645.13,0.31001503]
[1739317381189,3.57610606,645.6,645.13,0.31001503]
[1739317381388,3.57610606,645.59,645.13,0.31001503]
[1739317381585,1.00571501,645.6,645.13,0.31001503]
[1739317381586,3.57610606,645.58,645.13,0.31001503]
[1739317381788,4.58182107,645.57,645.13,0.31001503]
[1739317381989,1.00571501,645.57,645.13,0.31001503]
[1739317382283,1.37537643,645.56,645.13,0.31001503]
[1739317382489,4.58174331,645.55,645.13,0.31001503]
[1739317382693,3.5760283,645.54,645.13,0.31001503]
[1739317382887,3.5760283,645.53,645.13,0.31001503]
[1739317383192,1.37537643,645.52,645.13,0.31001503]
[1739317383391,2.38109144,645.51,645.13,0.31001503]
[1739317383587,1.37537643,645.5,645.13,0.31001503]
[1739317383789,1.37537643,645.49,645.13,0.31001503]
[1739317383990,1.37537643,645.48,645.13,0.31001503]
[1739317384187,2.3812003,645.47,645.13,0.31001503]
[1739317384391,1.00571501,645.47,645.13,0.31001503]
[1739317384592,0.92445988,645.73,645.13,0.31001503]
[1739317384593,1.00571501,645.46,645.13,0.31001503]
[1739317385094,1.00571501,645.45,645.13,0.31001503]
[1739317385394,1.00571501,645.44,645.13,0.31001503]
[1739317385695,4.583212,645.43,645.13,0.31001503]
[1739317385894,3.57749699,645.42,645.13,0.31001503]
[1739317386087,1.3758759,645.41,645.13,0.31001503]
[1739317386323,2.38159091,645.4,645.13,0.31001503]
[1739317386590,1.3758759,645.39,645.13,0.31001503]
[1739317386794,1.3758759,645.38,645.13,0.31001503]
[1739317386995,1.3758759,645.37,645.13,0.31001503]
[1739317387195,1.3758759,645.36,645.13,0.31001503]
[1739317387427,1.3758759,645.35,645.13,0.31001503]
[1739317387591,1.3758759,645.34,645.13,0.31001503]
[1739317387792,1.3758759,645.33,645.13,0.31001503]
[1739317387990,1.3758759,645.32,645.13,0.31001503]
[1739317388192,1.3758759,645.31,645.13,0.31001503]
[1739317388394,3.578332,645.3,645.13,0.31001503]
[1739317388692,1.00571501,645.32,645.13,0.31001503]
[1739317388891,1.00571501,645.29,645.13,0.31001503]
[1739317389091,2.66153241,645.28,645.13,0.31001503]
[1739317389290,4.86456552,645.27,645.13,0.31001503]
[1739317389595,2.66153241,645.26,645.13,0.31001503]
[1739317389795,2.66159519,645.25,645.13,0.31001503]
[1739317389996,2.38235584,645.24,645.13,0.31001503]
[1739317390197,1.28505211,645.23,645.13,0.31001503]
[1739317390499,4.86476333,645.22,645.13,0.31001503]
[1739317390692,4.86476333,645.21,645.13,0.31001503]
[1739317390998,4.86476333,645.2,645.13,0.31001503]
[1739317391198,4.86476333,645.19,645.13,0.31001503]
[1739317391395,5.87047834,645.18,645.13,0.31001503]
[1739317391599,4.86476333,645.17,645.13,0.31001503]
[1739317391795,0.92539092,645.14,644.18,1.15564507]
[1739317391998,4.86476333,645.13,644.2,0.31046258]
[1739317392198,4.86476333,645.12,644.2,0.31046258]
[1739317392399,3.66757913,645.11,644.2,0.31046258]
[1739317392602,2.66186412,645.1,644.29,1.15564507]
[1739317392794,2.66186412,645.09,644.31,0.31040958]
[1739317393000,2.66186412,645.08,644.31,0.31040958]
[1739317393201,2.66186412,645.07,644.31,0.31040958]
[1739317393397,4.78374415,646.41,644.31,0.31040958]
[1739317393398,3.66757913,645.06,644.31,0.31040958]
[1739317393599,2.66186412,645.05,644.31,0.31040958]
[1739317393820,1.00571501,645.06,644.31,0.31040958]
[1739317393821,2.66186412,645.04,644.31,0.31040958]
[1739317394102,3.66757913,645.03,644.31,0.31040958]
[1739317394296,2.66186412,645.02,644.31,0.31040958]
[1739317394495,2.66186412,645.01,644.31,0.31040958]
[1739317394698,2.66186412,645.0,644.31,0.31040958]
[1739317394902,3.66757913,644.99,644.31,0.31040958]
[1739317395096,2.66186412,644.98,644.31,0.31040958]
[1739317395297,2.66186412,644.97,644.31,0.31040958]
[1739317395497,2.38252702,644.96,644.31,0.31040958]
[1739317395700,1.37681201,644.95,644.31,0.31040958]
[1739317395902,1.37681201,644.94,644.31,0.31040958]
[1739317396099,1.00571501,644.94,644.31,0.31040958]
[1739317396900,0.92539092,645.29,644.31,0.31040958]
[1739317397138,1.36716296,645.28,644.31,0.31040958]
[1739317397306,1.36716296,645.27,644.31,0.31040958]
[1739317397502,1.36716296,645.26,644.31,0.31040958]
[1739317397710,2.36987821,645.25,644.32,1.61970329]
[1739317397904,1.36716296,645.24,644.34,0.31039513]
[1739317398208,2.36987821,645.23,644.34,0.31039513]
[1739317398408,1.36716296,645.22,644.34,0.31039513]
[1739317398607,1.36716296,645.21,644.34,0.31039513]
[1739317398806,1.36716296,645.2,644.34,0.31039513]
[1739317399004,1.36716296,645.19,644.34,0.31039513]
[1739317399267,1.36716296,645.18,644.34,0.31039513]
[1739317399406,1.00271525,645.19,644.34,0.31039513]
[1739317399407,1.36716296,645.17,644.34,0.31039513]
[1739317399605,2.36987821,645.16,644.34,0.31039513]
[1739317399810,1.36716296,645.15,644.34,0.31039513]
[1739317400011,1.36716296,645.14,644.34,0.31039513]
[1739317400207,2.36987821,645.13,644.34,0.31039513]
[1739317400408,1.36716296,645.12,644.34,0.31039513]
[1739317400613,1.36716296,645.11,644.34,0.31039513]
[1739317400812,2.36987821,645.1,644.34,0.31039513]
[1739317401011,2.64587405,645.09,644.34,0.31039513]
[1739317401208,2.64587405,645.08,644.34,0.31039513]
[1739317401426,2.64587405,645.07,644.34,0.31039513]
[1739317401605,1.00271525,645.09,644.34,0.31039513]
[1739317401606,2.64587405,645.06,644.34,0.31039513]
[1739317401810,2.64587405,645.05,644.34,0.31039513]
[1739317402010,2.64587405,645.04,644.34,0.31039513]
[1739317402308,2.64518807,645.03,644.34,0.31039513]
[1739317402512,2.64518807,645.02,644.34,0.31039513]
[1739317402713,2.64204229,645.01,644.34,0.31039513]
[1739317403012,3.64475754,645.0,644.34,0.31039513]
[1739317403214,2.64204229,644.99,644.34,0.31039513]
[1739317403415,2.64204229,644.98,644.34,0.31039513]
[1739317403619,2.64204229,644.97,644.34,0.31039513]
[1739317403812,2.64204229,644.96,644.34,0.31039513]
[1739317404118,2.64204229,644.95,644.34,0.31039513]
[1739317404417,2.64204229,644.94,644.34,0.31039513]
[1739317404617,1.00271525,644.95,644.34,0.31039513]
[1739317404818,3.64183151,644.94,644.34,0.31039513]
[1739317405019,2.63911626,644.93,644.34,0.31039513]
[1739317405212,2.6391932,644.92,644.34,0.31039513]
[1739317405416,2.6391932,644.91,644.34,0.31039513]
[1739317405614,2.6391932,644.9,644.34,0.31039513]
[1739317405832,2.6391932,644.89,644.34,0.31039513]
[1739317406021,2.6391932,644.88,644.34,0.31039513]
[1739317406223,1.36282549,644.87,644.34,0.31039513]
[1739317406520,1.36282549,644.86,644.34,0.31039513]
[1739317406721,1.36282549,644.85,644.34,0.31039513]
[1739317407021,1.36282549,644.84,644.34,0.31039513]
[1739317407316,0.99911365,644.85,644.34,0.31039513]
[1739317407720,0.99911365,644.84,644.34,0.31039513]
[1739317408325,0.91938843,645.12,644.34,0.31039513]
[1739317408326,0.99911365,644.83,644.34,0.31039513]
[1739317408921,0.91938843,645.12,644.34,0.31039513]
[1739317409222,2.63511121,645.11,644.34,0.31039513]
[1739317409423,3.63330354,645.1,644.34,0.31039513]
[1739317409722,3.55449964,645.09,644.34,0.31039513]
[1739317409924,2.63511121,645.08,644.34,0.31039513]
[1739317410118,2.63511121,645.07,644.34,0.31039513]
[1739317410316,2.63511121,645.06,644.34,0.31039513]
[1739317410522,2.63511121,645.05,644.34,0.31039513]
[1739317410723,2.63511121,645.04,644.34,0.31039513]
[1739317410923,2.63431095,645.03,644.34,0.31039513]
[1739317411122,2.63431095,645.02,644.34,0.31039513]
[1739317411317,2.63431095,645.01,644.34,0.31039513]
[1739317411523,2.63431095,645.0,644.34,0.31039513]
[1739317411720,2.63431095,644.99,644.34,0.31039513]
[1739317411922,3.63250328,644.98,644.34,0.31039513]
[1739317412118,2.63431095,644.97,644.34,0.31039513]
[1739317412320,3.63250328,644.96,644.34,0.31039513]
[1739317412627,2.63431095,644.95,644.34,0.31039513]
[1739317412826,2.63431095,644.94,644.34,0.31039513]
[1739317413022,2.63431095,644.93,644.34,0.31039513]
[1739317413223,2.63431095,644.92,644.34,0.31039513]
[1739317413527,1.35912715,644.91,644.34,0.31039513]
[1739317413723,1.35912715,644.9,644.34,0.31039513]
[1739317414027,0.99819233,644.89,644.34,0.31039513]
[1739317414928,0.99819233,644.88,644.34,0.31039513]
[1739317415329,0.99819233,644.87,644.34,0.31039513]
[1739317415823,0.91938843,645.18,644.34,0.31039513]
[1739317415824,0.99819233,644.86,644.34,0.31039513]
[1739317416028,1.35886274,644.85,644.34,0.31039513]
[1739317416221,0.99819233,644.86,644.34,0.31039513]
[1739317416627,0.99819233,644.85,644.34,0.31039513]
[1739317417325,0.99819233,644.84,644.34,0.31039513]
[1739317417728,0.99819233,644.83,644.34,0.31039513]
[1739317418125,0.99819233,644.82,644.34,0.31039513]
[1739317418730,0.99819233,644.81,644.34,0.31039513]
[1739317419330,0.99819233,644.8,644.34,0.31039513]
[1739317419729,0.91647247,645.25,644.34,0.31039513]
[1739317419931,2.63072585,645.24,644.34,0.31039513]
[1739317420129,2.63072585,645.23,644.34,0.31039513]
[1739317420334,0.91647247,645.25,644.34,0.31039513]
[1739317420335,3.62746669,645.22,644.34,0.31039513]
[1739317420535,2.63072585,645.21,644.34,0.31039513]
[1739317420735,2.63072585,645.2,644.34,0.31039513]
[1739317420937,2.63072585,645.19,644.34,0.31039513]
[1739317421136,2.63011138,645.18,644.34,0.31039513]
[1739317421337,2.63011138,645.17,644.34,0.31039513]
[1739317421533,3.62685222,645.16,644.34,0.31039513]
[1739317421737,2.63029714,645.15,644.34,0.31039513]
[1739317421936,2.63029714,645.14,644.34,0.31039513]
[1739317422132,2.63029714,645.13,644.34,0.31039513]
[1739317422334,2.63029714,645.12,644.34,0.31039513]
[1739317422531,2.63029714,645.11,644.34,0.31039513]
[1739317422868,1.35829598,645.1,644.34,0.31039513]
[1739317423037,1.35829598,645.09,644.34,0.31039513]
[1739317423236,1.35829598,645.08,644.34,0.31039513]
[1739317423439,2.63049392,645.07,644.34,0.31039513]
[1739317423741,1.35829598,645.06,644.34,0.31039513]
[1739317424033,1.35829598,645.05,644.34,0.31039513]
[1739317424238,2.35503682,645.04,644.34,0.31039513]
[1739317424436,0.99674084,645.04,644.34,0.31039513]
[1739317424839,0.99674084,645.03,644.34,0.31039513]
[1739317425940,0.99674084,645.02,644.34,0.31039513]
[1739317426541,0.91658506,645.31,644.34,0.31039513]
[1739317426542,0.99674084,645.01,644.34,0.31039513]
[1739317426941,0.99674084,645.0,644.34,0.31039513]
[1739317427538,0.91658506,645.31,644.34,0.31039513]
[1739317427743,2.63243777,645.3,644.34,0.31039513]
[1739317427939,2.63243777,645.29,644.34,0.31039513]
[1739317428195,2.63243777,645.28,644.34,0.31039513]
[1739317428342,0.99736047,645.29,644.34,0.31039513]
[1739317428343,2.63243777,645.27,644.34,0.31039513]
[1739317428540,2.63243777,645.26,644.34,0.31039513]
[1739317428741,0.91658506,645.37,644.34,0.31039513]
[1739317428742,2.63243777,645.25,644.34,0.31039513]
[1739317428936,2.63243777,645.24,644.34,0.31039513]
[1739317429140,2.63243777,645.23,644.34,0.31039513]
[1739317429338,2.63243777,645.22,644.34,0.31039513]
[1739317429539,2.63243777,645.21,644.34,0.31039513]
[1739317429839,3.62979824,645.2,644.34,0.31039513]
[1739317430043,2.63337424,645.19,644.34,0.31039513]
[1739317430347,2.63337424,645.18,644.34,0.31039513]
[1739317430541,2.63337424,645.17,644.34,0.31039513]
[1739317430745,2.63337424,645.16,644.34,0.31039513]
[1739317430944,2.63337424,645.15,644.34,0.31039513]
[1739317431138,1.35990132,645.14,644.34,0.31039513]
[1739317431341,0.99736047,645.16,644.34,0.31039513]
[1739317431740,2.35784678,645.15,644.34,0.31039513]
[1739317431939,0.99736047,645.15,644.34,0.31039513]
[1739317432139,0.99736047,645.14,644.34,0.31039513]
[1739317432546,0.99736047,645.13,644.34,0.31039513]
[1739317433039,0.99736047,645.12,644.34,0.31039513]
[1739317433244,0.99736047,645.11,644.34,0.31039513]
[1739317433945,0.91822279,645.43,644.34,0.31039513]
[1739317434145,0.99874445,645.1,644.34,0.31039513]
[1739317434346,1.91696724,645.42,644.34,0.31039513]
[1739317434547,2.63709917,645.41,644.34,0.31039513]
[1739317434742,2.63709917,645.4,644.34,0.31039513]
[1739317434941,2.63709917,645.39,644.34,0.31039513]
[1739317435146,2.63709917,645.38,644.34,0.31039513]
[1739317435340,2.63709917,645.37,644.34,0.31039513]
[1739317435644,2.63709917,645.36,644.34,0.31039513]
[1739317435864,2.63709917,645.35,644.34,0.31039513]
[1739317436148,2.63709917,645.34,644.34,0.31039513]
[1739317436342,2.63709917,645.33,644.34,0.31039513]
[1739317436545,2.63709917,645.32,644.34,0.31039513]
[1739317436743,2.63709917,645.31,644.34,0.31039513]
[1739317436948,2.63709917,645.3,644.34,0.31039513]
[1739317437144,2.63709917,645.29,644.34,0.31039513]
[1739317437349,2.63709917,645.28,644.34,0.31039513]
[1739317437561,2.63709917,645.27,644.34,0.31039513]
[1739317437746,2.63709917,645.26,644.34,0.31039513]
[1739317437983,1.27683517,645.25,644.34,0.31039513]
[1739317438246,2.64033903,645.24,644.34,0.31039513]
[1739317438447,2.64106738,645.23,644.34,0.31039513]
[1739317438648,0.99874445,645.25,644.34,0.31039513]
[1739317438649,2.64106738,645.22,644.34,0.31039513]
[1739317438845,2.64106738,645.21,644.34,0.31039513]
[1739317439046,2.64106738,645.2,644.34,0.31039513]
[1739317439242,2.64106738,645.19,644.34,0.31039513]
[1739317439448,2.64106738,645.18,644.34,0.31039513]
[1739317439650,2.64106738,645.17,644.34,0.31039513]
[1739317439845,2.64106738,645.16,644.34,0.31039513]
[1739317440150,2.64244862,645.15,644.34,0.31039513]
[1739317440344,2.64244862,645.14,644.34,0.31039513]
[1739317440546,2.64244862,645.13,644.34,0.31039513]
[1739317440747,1.36423221,645.12,644.34,0.31039513]
[1739317440946,1.36423221,645.11,644.34,0.31039513]
[1739317441170,1.36423221,645.1,644.34,0.31039513]
[1739317441445,1.36423221,645.09,644.34,0.31039513]
[1739317441644,1.36423221,645.08,644.34,0.31039513]
[1739317441849,0.99874445,645.1,644.34,0.31039513]
[1739317442150,0.99874445,645.09,644.34,0.31039513]
[1739317443350,0.99874445,645.08,644.34,0.31039513]
[1739317444050,0.92067318,645.38,644.34,0.31039513]
[1739317444051,0.99874445,645.07,644.34,0.31039513]
[1739317445152,0.99874445,645.06,644.34,0.31039513]
[1739317445557,0.92067318,645.36,644.34,0.31039513]
[1739317445754,2.65176421,645.35,644.34,0.31039513]
[1739317445958,2.65176421,645.34,644.34,0.31039513]
[1739317446151,2.65176421,645.33,644.34,0.31039513]
[1739317446355,3.01798096,646.21,644.34,0.31039513]
[1739317446356,0.92364473,645.29,644.34,0.31039513]
[1739317446555,3.57540894,645.28,644.34,0.31039513]
[1739317446756,2.65176421,645.27,644.34,0.31039513]
[1739317446956,2.65176421,645.26,644.34,0.31039513]
[1739317447158,2.65176421,645.25,644.34,0.31039513]
[1739317447357,2.65176421,645.24,644.34,0.31039513]
[1739317447554,2.65176421,645.23,644.34,0.31039513]
[1739317447754,3.6564234,645.22,644.34,0.31039513]
[1739317447957,2.65437201,645.21,644.34,0.31039513]
[1739317448157,2.65437201,645.2,644.42,1.15564507]
[1739317448353,3.6590312,645.19,644.43,0.31035178]
[1739317448553,2.65437201,645.18,644.43,0.31035178]
[1739317448759,2.65437201,645.17,644.43,0.31035178]
[1739317448953,2.65437201,645.16,644.43,0.31035178]
[1739317449156,3.6590312,645.15,644.43,0.31035178]
[1739317449357,2.65437201,645.14,644.43,0.31035178]
[1739317449553,2.65437201,645.13,644.43,0.31035178]
[1739317449753,2.65437201,645.12,644.43,0.31035178]
[1739317449955,3.6590312,645.11,644.43,0.31035178]
[1739317450159,2.65520109,645.1,644.43,0.31035178]
[1739317450360,1.00465919,645.11,644.43,0.31035178]
[1739317450361,2.65520109,645.09,644.43,0.31035178]
[1739317450563,2.65520109,645.08,644.43,0.31035178]
[1739317450760,2.65520109,645.07,644.43,0.31035178]
[1739317450958,3.65986028,645.06,644.43,0.31035178]
[1739317451162,2.65520109,645.05,644.43,0.31035178]
[1739317451357,2.65520109,645.04,644.43,0.31035178]
[1739317451556,2.65520109,645.03,644.43,0.31035178]
[1739317451759,2.65520109,645.02,644.43,0.31035178]
[1739317451956,2.65520109,645.01,644.43,0.31035178]
[1739317452158,2.6554989,645.0,644.43,0.31035178]
[1739317452461,1.00465919,645.03,644.43,0.31035178]
[1739317452462,2.6554989,644.99,644.43,0.31035178]
[1739317452663,1.37074589,644.98,644.43,0.31035178]
[1739317452864,1.37074589,644.97,644.43,0.31035178]
[1739317453164,1.37074589,644.96,644.43,0.31035178]
[1739317453363,1.00465919,644.96,644.43,0.31035178]
[1739317453560,1.00465919,644.95,644.43,0.31035178]
[1739317454459,0.92531339,645.18,644.43,0.31035178]
[1739317454759,2.65647433,645.17,644.43,0.31035178]
[1739317454965,2.65647433,645.16,644.52,1.15564507]
[1739317455165,2.65647433,645.15,644.53,0.31030363]
[1739317455362,2.65647433,645.14,644.53,0.31030363]
[1739317455665,3.66292813,645.13,644.53,0.31030363]
[1739317455860,2.65647433,645.12,644.53,0.31030363]
[1739317456066,2.65647433,645.11,644.53,0.31030363]
[1739317456264,2.65647433,645.1,644.53,0.31030363]
[1739317456458,2.65647433,645.09,644.53,0.31030363]
[1739317456663,2.65647433,645.08,644.53,0.31030363]
[1739317456860,2.65647433,645.07,644.53,0.31030363]
[1739317457063,2.65647433,645.06,644.53,0.31030363]
[1739317457260,2.65647433,645.05,644.59,1.15564507]
[1739317457461,3.66292813,645.04,644.6,0.31026993]
[1739317457666,2.65647433,645.03,644.6,0.31026993]
[1739317457969,1.37182771,645.02,644.6,0.31026993]
[1739317458266,1.37182771,645.01,644.6,0.31026993]
[1739317458468,1.37182771,645.0,644.6,0.31026993]
[1739317458661,1.37182771,644.99,644.6,0.31026993]
[1739317458866,1.37182771,644.98,644.6,0.31026993]
[1739317459065,1.37173604,644.97,644.6,0.31026993]
[1739317459267,2.65639971,644.96,644.6,0.31026993]
[1739317459566,2.65639971,644.95,644.6,0.31026993]
[1739317459763,2.65639971,644.94,644.6,0.31026993]
[1739317459963,1.37173604,644.93,644.6,0.31026993]
[1739317460162,1.37173604,644.92,644.6,0.31026993]
[1739317460466,1.37173604,644.91,644.6,0.31026993]
[1739317460664,1.37180583,644.9,644.6,0.31026993]
[1739317460865,1.0064538,644.91,644.6,0.31026993]
[1739317461064,1.37180932,644.9,644.6,0.31026993]
[1739317461268,2.37826312,644.89,644.6,0.31026993]
[1739317461466,1.0064538,644.89,644.6,0.31026993]
[1739317462170,0.92532378,645.35,644.6,0.31026993]
[1739317462370,0.92530102,645.32,644.6,0.31026993]
[1739317462565,2.6564557,645.31,644.6,0.31026993]
[1739317462770,2.6564557,645.3,644.6,0.31026993]
[1739317462963,3.66290486,645.29,644.6,0.31026993]
[1739317463168,2.6564557,645.28,644.6,0.31026993]
[1739317463371,2.6564557,645.27,644.6,0.31026993]
[1739317463571,2.6564557,645.26,644.6,0.31026993]
[1739317463767,2.6564557,645.25,644.6,0.31026993]
[1739317463972,2.6564557,645.24,644.6,0.31026993]
[1739317464268,3.66290486,645.23,644.6,0.31026993]
[1739317464473,2.6564557,645.22,644.6,0.31026993]
[1739317464672,2.6564557,645.21,644.6,0.31026993]
[1739317464881,2.6564557,645.2,644.6,0.31026993]
[1739317465073,2.6564557,645.19,644.6,0.31026993]
[1739317465274,2.6564557,645.18,644.6,0.31026993]
[1739317465573,2.6564557,645.17,644.6,0.31026993]
[1739317465873,3.66290486,645.16,644.6,0.31026993]
[1739317466172,2.6564557,645.15,644.6,0.31026993]
[1739317466372,2.6564557,645.14,644.6,0.31026993]
[1739317466572,2.6564557,645.13,644.6,0.31026993]
[1739317466768,2.6564557,645.12,644.6,0.31026993]
[1739317466966,2.6564557,645.11,644.6,0.31026993]
[1739317467170,2.6564557,645.1,644.6,0.31026993]
[1739317467372,2.6564557,645.09,644.6,0.31026993]
[1739317467573,2.65700021,645.08,644.6,0.31026993]
[1739317467768,2.65700021,645.07,644.6,0.31026993]
[1739317467970,2.65700021,645.06,644.6,0.31026993]
[1739317468169,3.66344937,645.05,644.6,0.31026993]
[1739317468372,2.65700021,645.04,644.6,0.31026993]
[1739317468572,2.65700021,645.03,644.6,0.31026993]
[1739317468774,1.37181641,645.02,644.6,0.31026993]
[1739317468974,1.37181641,645.01,644.6,0.31026993]
[1739317469177,1.37181641,645.0,644.6,0.31026993]
[1739317469374,2.37826557,644.99,644.6,0.31026993]
[1739317469572,1.37181641,644.98,644.6,0.31026993]
[1739317469768,2.37826557,644.97,644.6,0.31026993]
[1739317469975,1.00644916,644.96,644.6,0.31026993]
[1739317470575,1.00644916,644.95,644.6,0.31026993]
[1739317471173,1.00644916,644.94,644.6,0.31026993]
[1739317471870,1.00644916,644.93,644.6,0.31026993]
[1739317472071,1.37324038,644.92,644.6,0.31026993]
[1739317472272,1.00644916,644.93,644.6,0.31026993]
[1739317472475,2.37993549,644.92,644.6,0.31026993]
[1739317472781,1.00644916,644.91,644.6,0.31026993]
[1739317473280,1.00644916,644.9,644.6,0.31026993]
[1739317473873,0.9259139,645.23,644.6,0.31026993]
[1739317474077,3.66793761,645.22,644.6,0.31026993]
[1739317474277,2.66010766,645.21,644.6,0.31026993]
[1739317474585,3.66793761,645.2,644.6,0.31026993]
[1739317474773,2.66010766,645.19,644.6,0.31026993]
[1739317474978,2.66010766,645.18,644.6,0.31026993]
[1739317475178,2.66010766,645.17,644.6,0.31026993]
[1739317475378,2.66010766,645.16,644.6,0.31026993]
[1739317475571,2.66010766,645.15,644.6,0.31026993]
[1739317475777,2.66010766,645.14,644.6,0.31026993]
[1739317475972,2.66010766,645.13,644.6,0.31026993]
[1739317476173,1.00782995,645.17,644.6,0.31026993]
[1739317476375,3.66894099,645.16,644.6,0.31026993]
[1739317476579,2.66111104,645.15,644.6,0.31026993]
[1739317476774,3.66894099,645.14,644.6,0.31026993]
[1739317476981,2.66111104,645.13,644.6,0.31026993]
[1739317477182,3.66894099,645.12,644.6,0.31026993]
[1739317477382,2.66111104,645.11,644.6,0.31026993]
[1739317477576,2.66111104,645.1,644.6,0.31026993]
[1739317477778,2.66111104,645.09,644.6,0.31026993]
[1739317477977,3.66894099,645.08,644.6,0.31026993]
[1739317478177,2.66111104,645.07,644.6,0.31026993]
[1739317478478,2.66231452,645.06,644.6,0.31026993]
[1739317478681,2.66231452,645.05,644.6,0.31026993]
[1739317478877,2.66343052,645.04,644.6,0.31026993]
[1739317479078,2.66343052,645.03,644.6,0.31026993]
[1739317479281,2.66343052,645.02,644.6,0.31026993]
[1739317479482,2.66343052,645.01,644.6,0.31026993]
[1739317479683,2.66343052,645.0,644.6,0.31026993]
[1739317479983,3.67126047,644.99,644.6,0.31026993]
[1739317480182,2.66343052,644.98,644.6,0.31026993]
[1739317480380,2.66343052,644.97,644.6,0.31026993]
[1739317480581,1.00782995,644.99,644.6,0.31026993]
[1739317480582,2.66582324,644.96,644.6,0.31026993]
[1739317480782,2.66582324,644.95,644.6,0.31026993]
[1739317480984,2.66582324,644.94,644.6,0.31026993]
[1739317481283,2.66582324,644.93,644.6,0.31026993]
[1739317481484,2.66582324,644.92,644.6,0.31026993]
[1739317481683,2.66582324,644.91,644.6,0.31026993]
[1739317482017,2.66582324,644.9,644.6,0.31026993]
[1739317482183,2.66582324,644.89,644.6,0.31026993]
[1739317482381,2.66582324,644.88,644.6,0.31026993]
[1739317482586,2.66582324,644.87,644.6,0.31026993]
[1739317482785,2.66581792,644.86,644.6,0.31026993]
[1739317482985,1.37664253,644.85,644.6,0.31026993]
[1739317483286,1.37664253,644.84,644.6,0.31026993]
[1739317483482,1.37664253,644.83,644.6,0.31026993]